[Event "European Women-ch 2023"]
[Site "Petrovac"]
[Date "2023.03.21"]
[Round "4.23"]
[White "Antolak, Julia"]
[Black "Koridze, Lile"]
[Result "0-1"]
[ECO "B50"]
[WhiteElo "2276"]
[BlackElo "2122"]
[Annotator "TA"]
[PlyCount "62"]
[EventDate "2023.03.15"]
[EventType "swiss"]
[EventCountry "MNE"]
[SourceTitle "playchess.com"]
[Source "ChessBase"]
[SourceQuality "1"]
[TimeControl "40/5400+30:1800+30"]

{[%evp 15,62,7,7,3,8,4,18,22,16,0,9,0,0,0,30,-12,-4,-31,-31,-25,-25,-26,-32,-34,-26,-27,-12,-100,-102,-185,-191,-433,-414,-534,-531,-591,-469,-439,-470,-716,-558,-804,-790,-1061,-1054,-1051,-1039,-1096,-1085]} 1. e4 {[%emt 0:00:03]} c5 {[%emt 0:00:19]} 2. Nf3 {[%emt 0:00:18]} d6 {[%emt 0:00:11]} 3. c3 {[%emt 0:00:10]} Nf6 {[%emt 0:00:33]} 4. Be2 {[%emt 0:00:21]} g6 {[%emt 0:00:36]} 5. O-O {[%emt 0:00:14]} Bg7 {[%emt 0:00:19]} 6. Bb5+ {[%emt 0:00:30]} Bd7 {[%emt 0:01:19]} 7. Bxd7+ {[%emt 0:02:18]} Qxd7 {[%emt 0:01:13]} 8. Re1 {[%emt 0:00:08]} O-O $1 {[%emt 0:01:58] 8...0-0 scores better than 8...Nc6.} 9. d4 {[%emt 0:01:07] B50: Sicilian: 2...d6, Miscellaneous.} cxd4 {[%emt 0:00:54]} 10. cxd4 {[%emt 0:00:06]} e6 {[%emt 0:01:18]} 11. Nc3 {[%emt 0:01:03] The position is equal.} Nc6 {[%emt 0:06:52]} 12. b3 {[%emt 0:05:25]} Rac8 {[%emt 0:06:02][%cal Oc6d4]} 13. Bb2 {[%emt 0:02:17]} (13. Ba3 {is interesting.} Rfe8 14. Nb5 Nb4 15. Nxa7 Nc2 16. Nxc8 Rxc8 17. e5) 13... Rfd8 {[%emt 0:01:37] [#]} 14. h3 $146 {[%emt 0:07:14]} ({Predecessor:} 14. d5 Ne7 15. dxe6 fxe6 16. e5 Nfd5 17. Ne4 dxe5 18. Nxe5 Qc7 19. Qg4 Nf5 20. Rac1 Qb8 21. Nc4 Bxb2 22. Nxb2 Nc3 23. Ng5 Ne2+ 24. Kf1 Nf4 25. Qf3 {1-0 Mkrtchyan,M-Nguyen Tan Hoang,N (1748) Wch U10 Kemer 2009 (1)}) 14... a6 {[%emt 0:04:13]} 15. Na4 {[%emt 0:13:33] Threatens to win with d5.} Qc7 {[%emt 0:03:13]} 16. d5 {[%emt 0:03:59]} exd5 {[%emt 0:02:51]} (16... Ne5 17. Rc1 Nxf3+ 18. Qxf3 $14) 17. exd5 {[%emt 0:00:06]} Nb4 {[%emt 0:02:30]} 18. Rc1 {[%emt 0:11:45]} Qa5 {[%emt 0:07:50]} 19. Bxf6 {[%emt 0:10:31]} Bxf6 {[%emt 0:00:35]} 20. Qd2 {[%emt 0:00:16] And now a3 would win.} Qb5 {[%emt 0:03:56]} 21. Rxc8 {[%emt 0:06:47]} (21. Nc3 $1 $11 {was the only way to keep the balance.} Bxc3 22. Rxc3 Rxc3 23. Qxc3) 21... Rxc8 $17 {[%emt 0:00:05]} 22. Rd1 {[%emt 0:02:12]} (22. Re4 $17 {might work better.} Nxd5 23. Re1) 22... Rc2 $19 {[%emt 0:02:41]} 23. Qf4 {[%emt 0:02:10]} (23. Qe3) 23... Qe2 {[%emt 0:00:24][%mdl 64] [#] Deflection} (23... Nxd5 24. Qe4 (24. Rxd5 Qxd5 25. Qxf6 Qd1+ {[%mdl 64] Deflection} 26. Kh2 Rxf2 $17) 24... Qc6 25. Rxd5 $15 (25. Qxd5 Rc1 $17)) 24. Rf1 {[%emt 0:09:30]} Nxd5 {[%emt 0:00:16] Black is clearly winning.} 25. Qg3 {[%emt 0:02:38] White is weak on the dark squares} b5 {[%emt 0:07:29][%mdl 64] Trapped Piece} 26. Re1 {[%emt 0:02:53]} Nf4 {[%emt 0:01:04][%cal Ob5a4][%mdl 64] Deflection} 27. Nb6 {[%emt 0:03:09] [#]} (27. Kh1 $142 Qxf2 28. Qxf2 Rxf2 29. Nb6) 27... Bd4 $1 {[%emt 0:00:53][%cal Bf6d4,Bd4f2,Bf2g3][%mdl 608] Double Attack} 28. Kh1 {[%emt 0:01:31]} (28. Rxe2 Nxe2+) 28... Qxf2 {[%emt 0:01:13]} ({Stronger than} 28... Bxb6 29. Rxe2 (29. Qxf4 $2 {loses.} Qxf2 30. Rg1 Qe2 $19) 29... Nxe2 30. Qh4 $11 (30. Qxd6 $2 {perishes.} Rc1+ $19)) 29. Re8+ {[%emt 0:02:02]} Kg7 {[%emt 0:00:05] ( -> ...Qf1+)} 30. Qxf2 {[%emt 0:00:15]} Bxf2 {[%emt 0:00:07]} 31. Nd7 {[%emt 0:00:09]} Bg3 {[%emt 0:00:36] Ingenious play by Koridze!   Weighted Error Value: White=1.04/Black=0.22 (precise)} 0-1

[Event "European Women-ch 2023"]
[Site "Petrovac"]
[Date "2023.03.21"]
[Round "4.23"]
[White "Silva, Mariana Sofia T."]
[Black "Huseynova, Lala"]
[Result "0-1"]
[ECO "E11"]
[WhiteElo "1920"]
[BlackElo "1694"]
[Annotator "TA"]
[PlyCount "102"]
[EventDate "2023.03.15"]
[EventType "swiss"]
[EventCountry "MNE"]
[SourceTitle "playchess.com"]
[Source "ChessBase"]
[SourceQuality "1"]
[TimeControl "40/5400+30:1800+30"]

{[%evp 11,102,4,2,2,18,0,4,0,0,-8,5,0,15,8,11,12,28,18,24,13,28,0,27,26,28,29,60,-20,-20,-12,-30,-8,-6,-10,-19,-10,-12,-62,-43,-53,-35,-114,48,50,52,41,77,70,61,65,49,33,85,33,50,36,39,18,18,0,0,-500,-504,-486,-495,-606,-592,-547,-570,-864,-935,-878,-869,-1132,-1114,-977,-725,-1093,-1092,-851,-988,-872,-611,-1041,-964,-10070,-6087,-29981,-29982,-29982,-29983,-29985,-29986]} 1. d4 {[%emt 0:00:03]} d5 {[%emt 0:00:08]} 2. c4 {[%emt 0:00:07]} e6 {[%emt 0:00:13]} 3. Nf3 {[%emt 0:00:09]} Nf6 {[%emt 0:00:13]} 4. g3 {[%emt 0:00:10]} Bb4+ {[%emt 0:00:16]} 5. Bd2 {[%emt 0:00:10]} Be7 {[%emt 0:00:07]} 6. Bg2 {[%emt 0:00:07]} c6 {[%emt 0:00:39]} 7. O-O {[%emt 0:00:19] E11: Bogo-Indian.} b6 {[%emt 0:01:31] 7...Nbd7 is a critical line.} 8. Qc2 {[%emt 0:04:33] 8.Bf4 is not played anymore.} Bb7 {[%emt 0:01:32]} 9. cxd5 {[%emt 0:03:06] The position is equal.} cxd5 {[%emt 0:01:13]} 10. Ne5 {[%emt 0:04:46]} O-O {[%emt 0:03:10]} 11. Rc1 {[%emt 0:02:45]} Bd6 {[%emt 0:02:23]} 12. Bf4 {[%emt 0:08:42] [#]} Nh5 $146 {[%emt 0:11:04]} ({Predecessor:} 12... Qe7 13. Nc3 Rc8 14. Qa4 a6 15. Qb3 Nbd7 16. Na4 b5 17. Nd3 Bxf4 18. gxf4 Ne4 {½-½ Tatarinov,D (2190)-Perelygin,M (1920) Izhevsk Corporation Cup 5th 2013 (2)}) 13. Be3 {[%emt 0:17:35]} Qe7 {[%emt 0:09:47]} 14. Qa4 {[%emt 0:08:23]} (14. Nc3 {is interesting.} Nd7 15. f4 Rfc8 16. Qb3) 14... Nf6 {[%emt 0:07:07]} 15. Nd2 {[%emt 0:03:45]} Rd8 {[%emt 0:10:49]} 16. Ndf3 {[%emt 0:02:38]} Nfd7 {[%emt 0:04:38]} 17. Nd3 {[%emt 0:08:54]} Na6 {[%emt 0:09:14]} 18. Bf4 {[%emt 0:07:25]} f6 {[%emt 0:01:15][%cal Bf7f6,Bf6e5,Be5e4][%mdl 32]} 19. a3 {[%emt 0:04:42]} (19. Bxd6 $14 Qxd6 20. Bh3) 19... e5 $11 {[%emt 0:02:35]} 20. dxe5 {[%emt 0:00:05]} fxe5 {[%emt 0:01:06]} 21. Bg5 {[%emt 0:00:07]} Nf6 {[%emt 0:00:18] [#] ...e4 is the strong threat.} 22. Nh4 $1 {[%emt 0:02:52] Nf5 would be deadly.} e4 {[%emt 0:09:10]} 23. Nf5 {[%emt 0:02:52]} Qf7 {[%emt 0:01:03]} 24. Nf4 {[%emt 0:05:27]} (24. Nxd6 $11 Rxd6 25. Bf4 (25. Ne5 Qe6 $15)) 24... Nc5 {[%emt 0:01:13]} 25. Qd1 {[%emt 0:02:55]} Be5 {[%emt 0:02:28]} 26. Rab1 {[%emt 0:00:32] [#]} ({White should play} 26. Bh3 $15) 26... a5 $2 {[%emt 0:06:10]} (26... d4 $1 $17) 27. b4 $1 $36 {[%emt 0:01:23][%mdl 2048] Black is under pressure.} axb4 {[%emt 0:00:20]} 28. axb4 {[%emt 0:00:01]} Na4 {[%emt 0:00:27]} 29. Nd4 {[%emt 0:00:09]} h6 $1 {[%emt 0:02:21]} 30. Bxf6 {[%emt 0:03:56]} Qxf6 {[%emt 0:00:35]} 31. e3 {[%emt 0:02:27]} Bxd4 {[%emt 0:06:32]} (31... g5 $1 $14 32. Nfe6 Rdc8) 32. exd4 {[%emt 0:00:17]} ({White should try} 32. Qxd4 $16 Qxd4 33. exd4) 32... g5 $1 {[%emt 0:01:40]} 33. Nh5 {[%emt 0:00:21]} Qf7 {[%emt 0:00:14]} 34. b5 {[%emt 0:01:45]} (34. f4 $5 {[%cal Rf4g5]}) 34... Rf8 {[%emt 0:00:30]} 35. Qe2 {[%emt 0:00:43]} (35. Rc2 $5) 35... Rac8 {[%emt 0:01:10][%cal Ba8c8,Bc8c3,Bc3f3][%mdl 32] Strongly threatening ...Nc3.} 36. Bh3 $2 {[%emt 0:00:40][%mdl 8192] Black keeps a firm grip on the game.} (36. Ra1 $11 {and White is okay.}) 36... Nc3 $19 {[%emt 0:00:42]} 37. Rxc3 {[%emt 0:03:06]} Rxc3 {[%emt 0:00:07]} 38. Bg4 {[%emt 0:00:33]} Bc8 {[%emt 0:00:40]} 39. Bxc8 {[%emt 0:00:41]} Rfxc8 {[%emt 0:00:08]} 40. Rb2 {[%emt 0:00:00] Against Rc2} Rf3 {[%emt 0:00:00]} 41. g4 {[%emt 0:01:00]} Qe6 {[%emt 0:06:46]} 42. h3 {[%emt 0:00:54]} Rcf8 {[%emt 0:02:29] Hoping for ...e3.} 43. Kg2 {[%emt 0:16:14]} e3 {[%emt 0:00:38]} 44. Qxf3 {[%emt 0:01:26]} Rxf3 {[%emt 0:00:08]} 45. Kxf3 {[%emt 0:00:05][%mdl 4096] Endgame KQ-KRN} Qe4+ {[%emt 0:00:43]} 46. Kg3 {[%emt 0:00:13]} Qxd4 {[%emt 0:00:11]} 47. Ra2 {[%emt 0:00:49]} Qe5+ {[%emt 0:04:36]} 48. Kg2 {[%emt 0:02:08]} e2 {[%emt 0:00:32]} 49. Ra8+ {[%emt 0:00:42]} Kf7 {[%emt 0:00:35] Black mates.} 50. Ra7+ {[%emt 0:00:03]} Kf8 {[%emt 0:00:19]} 51. Ra8+ {[%emt 0:00:09]} Ke7 {[%emt 0:00:13] Weighted Error Value: White=0.89/Black=0.29 (precise)} 0-1

[Event "European Women-ch 2023"]
[Site "Petrovac"]
[Date "2023.03.21"]
[Round "4.24"]
[White "Sandu, Mihaela"]
[Black "Makropoulou, Marina"]
[Result "1-0"]
[ECO "C87"]
[WhiteElo "2211"]
[BlackElo "2102"]
[Annotator "TA"]
[PlyCount "75"]
[EventDate "2023.03.15"]
[EventType "swiss"]
[EventCountry "MNE"]
[SourceTitle "playchess.com"]
[Source "ChessBase"]
[SourceQuality "1"]
[TimeControl "40/5400+30:1800+30"]

{[%evp 15,75,39,40,47,52,32,30,35,42,44,30,34,32,28,54,35,55,57,70,61,78,53,70,53,71,66,51,54,59,56,62,56,145,147,150,145,140,96,96,97,91,95,94,96,301,310,391,399,404,435,544,488,446,456,639,391,950,920,862,647,660,602]} 1. e4 {[%emt 0:03:04]} e5 {[%emt 0:00:16]} 2. Nf3 {[%emt 0:00:04]} Nc6 {[%emt 0:00:11]} 3. Bb5 {[%emt 0:02:32]} a6 {[%emt 0:00:25]} 4. Ba4 {[%emt 0:00:04]} Nf6 {[%emt 0:00:53][%cal Bg8f6,Bf6d7,Bd7c5][%mdl 32]} 5. O-O {[%emt 0:00:10]} Be7 {[%emt 0:01:40]} 6. Re1 {[%emt 0:00:21]} d6 {[%emt 0:00:15]} 7. c3 {[%emt 0:00:50]} Bg4 {[%emt 0:00:13]} 8. d3 {[%emt 0:11:59]} Nd7 {[%emt 0:00:29]} 9. Nbd2 {[%emt 0:04:30] C87: Closed Ruy Lopez: Steinitz-type lines after 6 Re1 d6.} Nc5 {[%emt 0:09:34]} 10. Bc2 {[%emt 0:01:53]} Ne6 {[%emt 0:00:15]} 11. Nf1 {[%emt 0:02:59] White has an edge. is the legacy move (11.h3).} Bg5 {[%emt 0:05:13]} 12. h3 {[%emt 0:01:04]} Bxc1 {[%emt 0:04:37]} 13. Rxc1 {[%emt 0:02:37] [#]} Bxf3 $146 {[%emt 0:11:36]} ({Predecessor:} 13... Bh5 14. Ng3 Bg6 15. d4 Nf4 16. Ba4 Qf6 17. Nh2 O-O 18. d5 Ne7 19. c4 Qg5 {0-1 Ashwin,J (2413)-Filippov,A (2584) Asian Continental op 08th 2009 (4)}) 14. Qxf3 {[%emt 0:00:59]} Qg5 {[%emt 0:00:16]} 15. g3 {[%emt 0:20:13]} Qh6 {[%emt 0:08:49]} 16. Kg2 {[%emt 0:04:21]} Ng5 {[%emt 0:08:27]} 17. Qg4 {[%emt 0:00:37]} Qf6 {[%emt 0:00:13]} 18. f4 {[%emt 0:14:50]} Ne6 {[%emt 0:02:00][%cal Re5f4]} 19. f5 {[%emt 0:00:09]} h5 {[%emt 0:01:56]} 20. Qd1 {[%emt 0:04:29]} Nf8 {[%emt 0:07:06]} 21. Ne3 {[%emt 0:00:32]} Ne7 {[%emt 0:01:14]} 22. Ba4+ {[%emt 0:03:04]} c6 {[%emt 0:02:02] Black is weak on the light squares} 23. d4 {[%emt 0:00:29]} g6 {[%emt 0:03:52] [#]} (23... h4 $14) 24. Nd5 $1 $16 {[%emt 0:08:24]} Nxd5 {[%emt 0:00:19]} 25. exd5 {[%emt 0:00:04][%cal Be4d5,Bd5c6][%mdl 32] aiming for dxe5.} b5 {[%emt 0:02:36]} (25... Qxf5 $2 26. dxc6 b5 27. Bc2) 26. Bc2 {[%emt 0:02:31][%cal Ba4c2,Bc2f5,Bf5e4][%mdl 32] Hoping for Qe2.} gxf5 {[%emt 0:05:07]} 27. dxe5 {[%emt 0:03:17]} dxe5 {[%emt 0:00:10]} 28. Qf3 {[%emt 0:02:43][%csl LRc6,LRf5]} Ng6 {[%emt 0:06:09]} 29. Bxf5 {[%emt 0:02:10] [#] Threatens to win with Rcd1.} (29. Qxf5 {simplifies} Qxf5 30. Bxf5 cxd5 31. Bxg6 fxg6 32. Rxe5+ Kf7 33. Rf1+) 29... O-O $2 {[%emt 0:01:03] Black cannot hold the game after this.} (29... cxd5 $16 30. Bxg6 (30. Qxd5 Rd8 $11) 30... Qxf3+ 31. Kxf3 fxg6) 30. dxc6 $18 {[%emt 0:00:36]} Qg5 {[%emt 0:01:28] ...Nh4+ is the strong threat.} 31. Kh1 {[%emt 0:00:48] Active counter play!} e4 {[%emt 0:03:44]} 32. Bxe4 {[%emt 0:00:46]} ({Don't take} 32. Qxe4 Rae8 33. Qf3 (33. Qxe8 Rxe8 34. Rxe8+ Kg7 $16) 33... Re5 $18) 32... Rad8 {[%emt 0:00:18]} 33. Rcd1 {[%emt 0:00:47]} Rxd1 {[%emt 0:09:18]} 34. Rxd1 {[%emt 0:00:04]} Qe5 {[%emt 0:00:46]} (34... Rc8 $142 35. Rf1 Ne5) 35. Rf1 {[%emt 0:01:02] And now Bxg6 would win.} Qe6 {[%emt 0:00:37]} (35... Ne7 36. c7 Qxc7) 36. Bf5 {[%emt 0:00:42] White is clearly winning.} Qd6 {[%emt 0:00:22]} 37. Bxg6 {[%emt 0:01:29]} Qxg6 {[%emt 0:00:08]} 38. Qd5 {[%emt 0:00:40] Weighted Error Value: White=0.29 (precise) /Black=0.36} 1-0

[Event "European Women-ch 2023"]
[Site "Petrovac"]
[Date "2023.03.21"]
[Round "4.24"]
[White "Karaivanova, Petya"]
[Black "Bassari, Senem Gul"]
[Result "1/2-1/2"]
[ECO "B92"]
[WhiteElo "1875"]
[BlackElo "1524"]
[Annotator "NA RC COMBH"]
[PlyCount "72"]
[EventDate "2023.03.15"]
[EventType "swiss"]
[EventCountry "MNE"]
[SourceTitle "playchess.com"]
[Source "ChessBase"]
[SourceQuality "1"]
[TimeControl "40/5400+30:1800+30"]

1. e4 {[%emt 0:04:26]} c5 {[%emt 0:00:19]} 2. Nf3 {[%emt 0:00:03]} d6 {[%emt 0:00:09]} 3. d4 {[%emt 0:00:05]} cxd4 {[%emt 0:00:10]} 4. Nxd4 {[%emt 0:00:06]} Nf6 {[%emt 0:00:11]} 5. Nc3 {[%emt 0:00:06]} a6 {[%emt 0:00:10]} 6. Be3 {[%emt 0:00:09]} e5 {[%emt 0:00:12]} 7. Nb3 {[%emt 0:00:04]} Be6 {[%emt 0:00:07]} 8. Be2 {[%emt 0:00:04]} Be7 {[%emt 0:00:26]} 9. h4 {[%emt 0:00:16]} Nc6 {[%emt 0:12:00]} 10. Nd5 {[%emt 0:04:36]} Bxd5 {[%emt 0:07:47]} 11. exd5 {[%emt 0:00:06]} Na5 {[%emt 0:10:10]} 12. g4 {[%emt 0:09:19]} Nxb3 {[%emt 0:03:14]} 13. axb3 {[%emt 0:00:12]} Nd7 {[%emt 0:11:42]} 14. g5 {[%emt 0:02:11]} f5 {[%emt 0:12:30]} 15. f4 {[%emt 0:08:07]} exf4 {[%emt 0:09:05]} 16. Bxf4 {[%emt 0:00:34]} O-O {[%emt 0:04:50]} 17. b4 {[%emt 0:05:11]} a5 {[%emt 0:06:04]} 18. bxa5 {[%emt 0:05:43]} Rxa5 {[%emt 0:01:46]} 19. O-O {[%emt 0:00:20]} Rxa1 {[%emt 0:01:25]} 20. Qxa1 {[%emt 0:00:42]} Ne5 {[%emt 0:01:40]} 21. b3 {[%emt 0:04:00]} Ng6 {[%emt 0:02:07]} 22. Qe1 {[%emt 0:02:03]} Nxf4 {[%emt 0:02:35]} 23. Rxf4 {[%emt 0:00:06]} Bxg5 {[%emt 0:02:09]} 24. Rb4 {[%emt 0:02:10]} Be3+ {[%emt 0:01:37]} 25. Kg2 {[%emt 0:03:41]} f4 {[%emt 0:02:28]} 26. Bf3 {[%emt 0:08:33]} Rf6 {[%emt 0:02:56]} 27. h5 {[%emt 0:03:53]} Rf5 {[%emt 0:01:18]} 28. Bg4 {[%emt 0:08:58]} Rg5 {[%emt 0:01:29]} 29. Kf3 {[%emt 0:01:43]} Kf8 {[%emt 0:02:41]} 30. Rc4 {[%emt 0:04:04]} Rxg4 {[%emt 0:01:04]} 31. Kxg4 {[%emt 0:00:35]} Qd7+ {[%emt 0:00:22]} 32. Kh4 {[%emt 0:08:21]} Qe7+ {[%emt 0:00:30]} 33. Kh3 {[%emt 0:00:54]} Qd7+ {[%emt 0:00:35]} 34. Kh2 {[%emt 0:03:55]} Qg4 {[%emt 0:00:01]} 35. Qxe3 {[%emt 0:00:03]} Qh4+ {[%emt 0:00:05]} 36. Qh3 {[%emt 0:00:02]} Qf2+ {[%emt 0:02:03]} 1/2-1/2

[Event "European Women-ch 2023"]
[Site "Petrovac"]
[Date "2023.03.21"]
[Round "4.25"]
[White "Valkova, Angelika"]
[Black "Toncheva, Nadya"]
[Result "0-1"]
[ECO "D27"]
[WhiteElo "2055"]
[BlackElo "2192"]
[Annotator "TA"]
[PlyCount "166"]
[EventDate "2023.03.15"]
[EventType "swiss"]
[EventCountry "MNE"]
[SourceTitle "playchess.com"]
[Source "ChessBase"]
[SourceQuality "1"]
[TimeControl "40/5400+30:1800+30"]

{[%evp 18,166,27,24,25,40,29,21,40,38,56,56,79,70,70,82,91,90,85,76,88,77,93,95,102,28,73,39,38,40,136,63,136,76,111,14,75,32,73,72,71,64,67,64,64,64,64,64,64,64,64,64,108,121,133,109,131,124,199,64,64,102,73,111,118,0,0,0,0,0,0,0,0,0,0,0,0,0,0,0,0,0,0,0,0,0,0,0,0,0,0,0,0,0,0,0,0,0,0,0,0,0,0,0,0,0,0,0,0,0,0,0,0,0,0,-34,-41,-81,-67,-12838,-12839,-12839,-12839,-12840,-12839,-12843,-12843,-12844,-12844,-12845,-12846,-12846,-12846,-12846,-12846,-12847,-12845,-12848,-12848,-12849,-12847,-12848,-12847,-12848,-12848,-12850,-27999,-27999,-27999,-27999,-27999]} 1. d4 {[%emt 0:00:03]} d5 {[%emt 0:00:05]} 2. c4 {[%emt 0:00:04]} dxc4 {[%emt 0:00:03]} 3. Nf3 {[%emt 0:00:06]} Nf6 {[%emt 0:00:04]} 4. e3 {[%emt 0:00:05]} e6 {[%emt 0:00:04]} 5. Bxc4 {[%emt 0:00:08]} c5 {[%emt 0:00:04]} 6. O-O {[%emt 0:00:10]} a6 {[%emt 0:00:04]} 7. dxc5 {[%emt 0:00:19]} Qxd1 {[%emt 0:00:07]} 8. Rxd1 {[%emt 0:00:04]} Bxc5 {[%emt 0:00:05]} 9. Be2 {[%emt 0:00:28] 9.b3 might become the main line.} O-O {[%emt 0:00:38]} 10. Nbd2 {[%emt 0:04:24]} b6 {[%emt 0:05:55] D27: Queen's Gambit Accepted: Classical main line: 7 e4!? and 7 a4.} 11. Nb3 {[%emt 0:05:39]} Be7 {[%emt 0:00:29]} 12. Ne5 {[%emt 0:01:33][%cal Oe3e4]} Bb7 {[%emt 0:01:10] The position is equal.} 13. f3 {[%emt 0:01:31] [#]} a5 $146 {[%emt 0:08:32]} ({Predecessor:} 13... Rd8 14. Rxd8+ Bxd8 15. e4 Nbd7 16. Nc4 Bc7 17. Be3 Kf8 18. Rd1 Ke7 19. Bd2 Ne8 {½-½ Lafuente,P (2587)-Murali Krishnan,B (2412) Mumbai Mayors Cup 3rd 2010 (5)}) 14. e4 {[%emt 0:09:44]} a4 {[%emt 0:01:26]} 15. Nd4 {[%emt 0:00:10]} Rd8 {[%emt 0:10:51]} 16. Be3 {[%emt 0:02:42]} a3 {[%emt 0:01:39]} 17. b3 {[%emt 0:02:19]} Nfd7 {[%emt 0:06:52]} 18. Nc4 {[%emt 0:12:00]} Ba6 {[%emt 0:08:10]} 19. Nc2 {[%emt 0:02:38]} Bxc4 {[%emt 0:00:18]} 20. Bxc4 {[%emt 0:04:08]} ({Don't take} 20. bxc4 Nc6 $14) 20... Rc8 {[%emt 0:08:13]} 21. Nd4 {[%emt 0:15:43]} (21. Rac1 $16) 21... Bc5 {[%emt 0:01:04]} 22. Kf2 {[%emt 0:00:23]} Ne5 {[%emt 0:04:47]} 23. Bb5 {[%emt 0:04:10]} Ra7 {[%emt 0:06:59]} (23... Nbc6 $14) 24. h3 {[%emt 0:04:40]} ({Better is} 24. Rac1 $16 {Hoping for b4.} Rf8 25. Nc2) 24... h6 {[%emt 0:03:43]} (24... Ra5 $1 $14) 25. f4 {[%emt 0:05:40]} (25. Rac1 $142 {aiming for b4.} Rac7 26. Ke2) 25... Ng6 {[%emt 0:01:09]} 26. e5 {[%emt 0:04:26]} ({White should try} 26. Rac1 $16 {b4 would be deadly.} Rac7 27. Ke2) 26... Rac7 {[%emt 0:02:01]} (26... Ne7 $11 {remains equal.}) 27. Bc4 $16 {[%emt 0:00:35]} Rd7 {[%emt 0:04:27] [#] Threatens to win with ...Rcd8.} 28. Nxe6 {[%emt 0:03:25]} Bxe3+ {[%emt 0:02:22]} 29. Kxe3 {[%emt 0:00:05]} Rxc4 {[%emt 0:04:00]} 30. bxc4 {[%emt 0:00:20]} fxe6 {[%emt 0:00:04]} 31. Rxd7 $1 {[%emt 0:02:21]} Nxd7 {[%emt 0:00:01]} 32. Rd1 {[%emt 0:02:13]} Ngf8 {[%emt 0:02:40]} 33. Rd3 {[%emt 0:00:51]} g5 {[%emt 0:00:12]} 34. g3 {[%emt 0:00:26]} ({Don't play} 34. Rxa3 gxf4+ 35. Kxf4 Ng6+ 36. Ke4 Ngxe5 $11) 34... gxf4+ {[%emt 0:01:48]} 35. gxf4 {[%emt 0:00:07]} Nc5 {[%emt 0:03:16]} 36. Rxa3 {[%emt 0:00:40]} Kf7 {[%emt 0:00:54]} 37. Ra7+ {[%emt 0:04:42]} Ke8 {[%emt 0:00:29]} (37... Nfd7 $16 38. a4 Kg6) 38. Kf3 {[%emt 0:02:39]} (38. Rg7 $18) 38... Ng6 $1 $14 {[%emt 0:01:08]} 39. Kg4 {[%emt 0:03:29]} Ne7 {[%emt 0:00:06]} 40. a4 {[%emt 0:00:00]} Nf5 {[%emt 0:00:00] [#]} 41. a5 {[%emt 0:04:27]} (41. Kh5 $1 $16) 41... bxa5 $11 {[%emt 0:00:33]} 42. Rxa5 {[%emt 0:03:12]} Ne4 {[%emt 0:00:51]} 43. Ra7 {[%emt 0:04:36]} Nf2+ {[%emt 0:01:18] A dynamic duo of knights.} 44. Kf3 {[%emt 0:00:06]} Nd3 {[%emt 0:03:33]} 45. Ra3 {[%emt 0:07:31]} Nc5 {[%emt 0:00:47]} 46. Ra5 {[%emt 0:00:34]} Nb3 {[%emt 0:00:27]} 47. Ra4 {[%emt 0:00:59]} Kd7 {[%emt 0:01:32]} 48. Rb4 {[%emt 0:01:28]} Nbd4+ {[%emt 0:01:51]} 49. Ke4 {[%emt 0:02:01]} Kc6 {[%emt 0:00:15]} 50. Rb8 {[%emt 0:00:14]} Ne2 {[%emt 0:02:52]} 51. Rc8+ {[%emt 0:01:18]} Kd7 {[%emt 0:00:08]} 52. Rg8 {[%emt 0:00:55]} h5 {[%emt 0:01:22]} 53. Rg2 {[%emt 0:03:04]} Nc3+ {[%emt 0:01:05]} 54. Kd3 {[%emt 0:00:20]} Na4 {[%emt 0:00:03]} 55. Rg5 {[%emt 0:02:25]} Nc5+ {[%emt 0:00:12]} 56. Ke2 {[%emt 0:00:54]} h4 {[%emt 0:01:05]} 57. Kf3 {[%emt 0:00:26]} Nd3 {[%emt 0:01:25]} 58. Rg1 {[%emt 0:01:53]} Kc6 {[%emt 0:01:00]} 59. Rg8 {[%emt 0:02:29]} Kc5 {[%emt 0:05:05]} 60. Re8 {[%emt 0:03:25]} Kxc4 {[%emt 0:00:14]} 61. Kg4 {[%emt 0:00:49]} Kd5 {[%emt 0:01:51]} 62. Kg5 {[%emt 0:00:47]} Nc5 {[%emt 0:10:06]} 63. Kf6 {[%emt 0:01:01]} Ne3 {[%emt 0:06:30]} 64. Rh8 {[%emt 0:00:41]} Ng2 {[%emt 0:00:50]} 65. f5 {[%emt 0:01:22] Rd8+ is the strong threat.} Ne4+ {[%emt 0:01:06][%mdl 64] Deflection} 66. Ke7 {[%emt 0:00:29]} exf5 {[%emt 0:00:37][%cal Be6f5,Bf5f4,Bf4f3,Bf3f2][%mdl 32]} 67. e6 {[%emt 0:00:06]} Ke5 {[%emt 0:01:44]} 68. Re8 $2 {[%emt 0:01:07][%mdl 8192]} (68. Rh7 $15) 68... Nf4 $1 $19 {[%emt 0:00:38][%csl LRe6,LRh3]} 69. Ra8 {[%emt 0:00:23]} Nxe6 {[%emt 0:01:09]} 70. Ra5+ {[%emt 0:00:05]} N6c5 {[%emt 0:00:03]} 71. Kf7 {[%emt 0:00:24]} f4 {[%emt 0:01:30]} 72. Kg6 {[%emt 0:00:15]} f3 {[%emt 0:00:18]} 73. Kh5 {[%emt 0:00:27]} f2 {[%emt 0:00:05]} 74. Ra1 {[%emt 0:00:04]} Nd3 {[%emt 0:00:07]} 75. Kg4 {[%emt 0:01:04]} Ne1 {[%emt 0:01:29]} 76. Ra5+ {[%emt 0:00:03]} Kd4 {[%emt 0:01:14]} 77. Rf5 {[%emt 0:00:05]} Ng2 {[%emt 0:00:14]} 78. Rf3 {[%emt 0:00:26]} Ke5 {[%emt 0:03:16]} 79. Rf5+ {[%emt 0:00:08]} Kd6 {[%emt 0:00:48]} 80. Rf3 {[%emt 0:00:58]} Ke6 {[%emt 0:00:07]} 81. Rxf2 {[%emt 0:02:03]} Nxf2+ {[%emt 0:00:04]} 82. Kf3 {[%emt 0:00:04]} Nxh3 {[%emt 0:00:14]} 83. Kg4 {[%emt 0:00:40]} Ng5 {[%emt 0:00:21] Quite a comeback for Black.   Weighted Error Value: White=0.15 (very precise) /Black=0.12 (very precise)} 0-1